fUSD/lending_fUSD_20260103
["ID","MTS","AMOUNT","RATE_DAILY","PERIOD"]
[400344386,1767401440736,-578.04560059,0.0003873,2]
[400344387,1767401440746,-615.94778257,0.0003873,2]
[400344388,1767401440756,-304.64549813,0.0003873,2]
[400344389,1767401440769,-3984.39616337,0.00038731,2]
[400344390,1767401440779,-2303.18208645,0.00038731,2]
[400344391,1767401440789,-796.2658854,0.00038731,2]
[400344392,1767401440799,-7486.93338036,0.00039302,2]
[400344393,1767401440809,-4537.14021333,0.00039302,2]
[400344394,1767401440820,-222.44,0.00039654,2]
[400344395,1767401440830,-508.0,0.00040037,10]
[400344396,1767401440841,-4390.0,0.00040222,5]
[400344397,1767401440851,-1403.0,0.00040281,2]
[400344398,1767401440862,-613.0,0.00040281,2]
[400344399,1767401440873,-1328.0,0.00040281,2]
[400344400,1767401440883,-3463.0,0.00040281,2]
[400344401,1767401440894,-1199.0,0.00040281,2]
[400344402,1767401440905,-913.0,0.00040281,2]
[400344403,1767401440916,-433.0,0.00040281,2]
[400344404,1767401440926,-1265.0,0.00040281,2]
[400344405,1767401440937,-150.0,0.00040281,120]
[400344406,1767401440948,-2433.0,0.00040281,2]
[400344407,1767401440958,-150.0,0.00040281,2]
[400344408,1767401440968,-4814.0,0.00040281,2]
[400344409,1767401440980,-1697.88,0.00040466,120]
[400344410,1767401440990,-151.0,0.00040466,120]
[400344411,1767401441001,-151.0,0.00040466,28]
[400344412,1767401441011,-151.0,0.00040466,28]
[400344413,1767401441023,-151.0,0.00040466,28]
[400344414,1767401441034,-151.0,0.00040466,28]
[400344415,1767401441049,-151.0,0.00040466,120]
[400344416,1767401441060,-151.0,0.00040466,120]
[400344417,1767401441070,-243.336503,0.00040466,120]
[400344418,1767401441081,-151.0,0.00040466,120]
[400344419,1767401441092,-212.623612,0.00040466,15]
[400344420,1767401441102,-212.623612,0.00040466,15]
[400344421,1767401441113,-212.623612,0.00040466,15]
[400344422,1767401441123,-212.623612,0.00040466,15]
[400344423,1767401441134,-422.27835238,0.0004048,2]
[400344424,1767401441146,-326.6670978,0.00040499,10]
[400344425,1767401441156,-7486.93338036,0.00040513,15]
[400344426,1767401441167,-4537.14021333,0.00040513,15]
[400344427,1767401441177,-151.0,0.00040624,7]
[400344428,1767401441187,-151.0,0.00040624,120]
[400344429,1767401441198,-151.0,0.00040624,120]
[400344430,1767401441208,-151.0,0.00040624,2]
[400344431,1767401441219,-151.0,0.00040624,120]
[400344432,1767401441230,-151.0,0.00040624,120]
[400344433,1767401441240,-215.78,0.0004076,2]
[400344434,1767401441250,-1000.0,0.00040788,2]
[400344435,1767401441260,-87638.0026908,0.00040967,2]
[400344436,1767401441271,-151.0,0.00040967,60]
[400344437,1767401441281,-151.0,0.00040967,120]
[400344438,1767401441291,-151.0,0.00040967,120]
[400344439,1767401441302,-151.0,0.00040967,120]
[400344440,1767401441312,-151.0,0.00040967,120]
[400344441,1767401441325,-151.0,0.00040967,120]
[400344442,1767401441341,-151.0,0.00040967,120]
[400344443,1767401441351,-151.0,0.00040967,120]
[400344444,1767401441362,-151.0,0.00040967,120]
[400344445,1767401441372,-151.0,0.00040967,120]
[400344446,1767401441386,-151.0,0.00040967,120]
[400344447,1767401441396,-157.056876,0.00040967,120]
[400344448,1767401441407,-151.0,0.00040967,120]
[400344449,1767401441422,-151.0,0.00040967,120]
[400344450,1767401441433,-151.0,0.00040967,120]
[400344451,1767401441444,-151.0,0.00040967,120]
[400344452,1767401441462,-151.0,0.00040967,120]
[400344453,1767401441479,-151.0,0.00040967,120]
[400344454,1767401441489,-151.0,0.00040967,120]
[400344455,1767401441499,-151.0,0.00040967,120]
[400344456,1767401441510,-151.0,0.00040967,120]
[400344457,1767401441520,-151.0,0.00040967,120]
[400344458,1767401441530,-151.0,0.00040967,120]
[400344459,1767401441540,-151.0,0.00040967,120]
[400344460,1767401441551,-166.66,0.00041031,30]
[400344461,1767401441562,-999.0,0.00041095,120]
[400344462,1767401441573,-284.74136011,0.00041096,2]
[400344463,1767401441583,-325.67051365,0.00041096,95]
[400344464,1767401441599,-267.94,0.00041279,120]
[400344465,1767401441610,-151.87089949,0.00041369,2]
[400344466,1767401441624,-508.0,0.00041369,10]
[400344467,1767401441634,-500.0,0.00041413,60]
[400344468,1767401441645,-300.0,0.00041413,60]
[400344469,1767401441655,-500.0,0.00041413,60]
[400344470,1767401441667,-332.0,0.0004172,30]
[400344471,1767401441678,-7486.93338036,0.00041725,15]
[400344472,1767401441688,-4537.14021333,0.00041725,15]
[400344473,1767401441699,-1533.33554245,0.00041731,7]
[400344474,1767401441710,-180.94,0.00041817,14]
[400344475,1767401441720,-166.66,0.00041844,30]
[400344476,1767401441731,-204.36,0.000419,14]
[400344477,1767401441742,-500.0,0.00041961,60]
[400344478,1767401441752,-166.66,0.00042031,2]
[400344479,1767401441763,-482.01,0.00042082,30]
[400344480,1767401441774,-660.52,0.00042082,30]
[400344481,1767401441785,-277.88,0.00042098,14]
[400344482,1767401441796,-332.0,0.0004215,30]
[400344483,1767401441807,-999.0,0.00042191,120]
[400344484,1767401441820,-1222.64,0.00042219,30]
[400344485,1767401441831,-178.8,0.00042219,30]
[400344486,1767401441843,-300.0,0.00042219,30]
[400344487,1767401441854,-1124.22,0.00042219,30]
[400344488,1767401441864,-465.64,0.00042219,30]
[400344489,1767401441875,-171.08,0.00042219,30]
[400344490,1767401441885,-171.08,0.00042219,30]
[400344491,1767401441896,-171.08,0.00042219,30]
[400344492,1767401441907,-500.0,0.00042501,30]
[400344493,1767401441918,-500.0,0.00042501,30]
[400344494,1767401441928,-500.0,0.00042501,30]
[400344495,1767401441939,-500.0,0.00042509,60]
[400344496,1767401441950,-500.0,0.00042509,60]
[400344497,1767401441960,-151.0,0.0004252,120]
[400344498,1767401441971,-324.36552,0.0004252,120]
[400344499,1767401441982,-324.36553,0.0004252,120]
[400344500,1767401441993,-324.36553,0.0004252,120]
[400344501,1767401442004,-324.36553,0.0004252,120]
[400344502,1767401442015,-324.36553,0.0004252,120]
[400344503,1767401442025,-332.0,0.0004258,30]
[400344504,1767401442036,-166.66,0.00042656,30]
[400344505,1767401442047,-508.0,0.00042701,10]
[400344506,1767401442058,-300.0,0.0004278,2]
[400344507,1767401442068,-300.0,0.00042788,2]
[400344508,1767401442079,-300.0,0.0004284,2]
[400344509,1767401442090,-7486.93338036,0.00042937,15]
[400344510,1767401442100,-155.76831981,0.00042937,30]
[400344511,1767401442110,-169.51031729,0.00042937,2]
[400344512,1767401442121,-11529.97173469,0.00042937,2]
[400344513,1767401442131,-4537.14021333,0.00042937,15]
[400344514,1767401442142,-324.36553,0.00042948,120]
[400344515,1767401442153,-324.36553,0.00042948,120]
[400344516,1767401442164,-324.36553,0.00042948,120]
[400344517,1767401442175,-324.36553,0.00042948,120]
[400344518,1767401442184,-324.36553,0.00042948,120]
[400344521,1767401442207,-300.0,0.00042989,2]
[400344523,1767401442219,-300.0,0.00042991,2]
[400344526,1767401442231,-300.0,0.00042999,2]
[400344528,1767401442243,-150.0,0.00042999,2]
[400344529,1767401442255,-160.06,0.00043,60]
[400344531,1767401442266,-150.0,0.00043,27]
[400344532,1767401442277,-300.0,0.00043,120]
[400344533,1767401442288,-617.42063572,0.00043,120]
[400344534,1767401442299,-2933.870534,0.00043,120]
[400344535,1767401442311,-150.35651531,0.00043,45]
[400344536,1767401442737,-3904.63175429,0.00043,30]
[400344537,1767401442756,-1118.0,0.00043,89]
[400344538,1767401442766,-161.59,0.00043,6]
[400344539,1767401442776,-253.0,0.00043,41]
[400344540,1767401442790,-557.08,0.00043005,30]
[400344541,1767401442800,-150.0,0.0004301,60]
[400344542,1767401442810,-150.0,0.0004301,2]
[400344543,1767401442820,-332.0,0.0004301,30]
[400344544,1767401442830,-150.0,0.00043014,30]
[400344545,1767401442840,-150.0,0.00043014,30]
[400344546,1767401442851,-150.0,0.00043014,30]
[400344547,1767401442860,-150.0,0.00043014,30]
[400344548,1767401442870,-150.0,0.00043014,30]
[400344549,1767401442880,-150.0,0.00043014,30]
[400344550,1767401442890,-150.55633321,0.00043014,30]
[400344551,1767401442900,-150.0,0.00043014,30]
[400344552,1767401442910,-270.7355794,0.00043014,30]
[400344553,1767401442921,-150.0,0.00043014,30]
[400344555,1767401442931,-284.46660851,0.00043014,30]
[400344557,1767401442941,-248.71429368,0.00043014,30]
[400344559,1767401442950,-150.0,0.00043018,30]
[400344560,1767401442960,-200.0,0.00043019,120]
[400344561,1767401442970,-150.0,0.0004302,30]
[400344563,1767401442980,-150.0,0.00043022,30]
[400344564,1767401442990,-150.0,0.00043027,30]
[400344565,1767401442999,-150.0,0.00043027,30]
[400344566,1767401443010,-191.55276757,0.00043027,7]
[400344567,1767401443021,-151.4,0.00043027,2]
[400344568,1767401443032,-151.4,0.00043027,2]
[400344569,1767401443042,-151.4,0.00043027,2]
[400344570,1767401443051,-151.4,0.00043027,2]
[400344571,1767401443061,-151.4,0.00043027,2]
[400344572,1767401443071,-151.4,0.00043027,2]
[400344573,1767401443081,-151.4,0.00043027,2]
[400344574,1767401443090,-151.4,0.00043027,2]
[400344575,1767401443100,-151.4,0.00043027,2]
[400344576,1767401443109,-151.4,0.00043027,2]
[400344577,1767401443119,-151.4,0.00043027,2]
[400344578,1767401443129,-151.4,0.00043027,2]
[400344579,1767401443139,-151.4,0.00043027,2]
[400344580,1767401443153,-151.4,0.00043027,2]
[400344581,1767401443163,-150.0,0.00043029,30]
[400344582,1767401443172,-150.0,0.00043031,30]
[400344583,1767401443181,-150.0,0.00043033,30]
[400344584,1767401443191,-150.0,0.00043033,30]
[400344585,1767401443200,-150.0,0.00043035,30]
[400344586,1767401443211,-151.0,0.00043037,120]
[400344587,1767401443222,-151.0,0.00043037,60]
[400344588,1767401443232,-151.0,0.00043037,60]
[400344589,1767401443242,-151.0,0.00043037,120]
[400344590,1767401443251,-151.0,0.00043037,120]
[400344591,1767401443261,-151.0,0.00043037,120]
[400344592,1767401443271,-151.0,0.00043037,120]
[400344593,1767401443280,-151.0,0.00043037,120]
[400344594,1767401443290,-151.0,0.00043037,120]
[400344595,1767401443299,-151.0,0.00043037,120]
[400344596,1767401443309,-151.0,0.00043037,120]
[400344597,1767401443319,-151.0,0.00043037,120]
[400344598,1767401443328,-259.726923,0.00043037,120]
[400344599,1767401443338,-151.0,0.00043037,7]
[400344600,1767401443348,-151.0,0.00043037,7]
[400344601,1767401443358,-151.0,0.00043037,7]
[400344602,1767401443367,-151.0,0.00043037,7]
[400344603,1767401443381,-151.0,0.00043037,120]
[400344604,1767401443391,-151.0,0.00043037,120]
[400344605,1767401443401,-151.0,0.00043037,120]
[400344606,1767401443410,-151.0,0.00043037,120]
[400344607,1767401443422,-151.0,0.00043037,120]
[400344608,1767401443432,-151.0,0.00043037,120]
[400344609,1767401443442,-151.0,0.00043037,120]
[400344610,1767401443453,-151.0,0.00043037,2]
[400344611,1767401443463,-186.792888,0.00043037,120]
[400344612,1767401443473,-151.0,0.00043037,28]
[400344613,1767401443483,-151.0,0.00043037,28]
[400344614,1767401443494,-151.0,0.00043037,28]
[400344615,1767401443504,-151.0,0.00043037,28]
[400344616,1767401443517,-151.0,0.00043037,28]
[400344617,1767401443527,-151.0,0.00043037,28]
[400344618,1767401443537,-151.0,0.00043037,28]
[400344619,1767401443547,-151.0,0.00043037,28]
[400344620,1767401443556,-151.0,0.00043037,28]
[400344621,1767401443566,-151.0,0.00043037,28]
[400344622,1767401443576,-151.0,0.00043037,28]
[400344623,1767401443586,-151.0,0.00043037,28]
[400344624,1767401443596,-151.0,0.00043037,28]
[400344625,1767401443605,-151.0,0.00043037,28]
[400344626,1767401443616,-283.373905,0.00043037,28]
[400344627,1767401443627,-151.0,0.00043037,120]
[400344628,1767401443636,-151.0,0.00043037,120]
[400344629,1767401443646,-151.0,0.00043037,120]
[400344630,1767401443656,-151.0,0.00043037,120]
[400344631,1767401443666,-151.0,0.00043037,120]
[400344632,1767401443675,-151.0,0.00043037,120]
[400344633,1767401443686,-226.573769,0.00043037,120]
[400344634,1767401443697,-212.623612,0.00043037,15]
[400344635,1767401443707,-212.623612,0.00043037,15]
[400344636,1767401443721,-212.623612,0.00043037,15]
[400344637,1767401443732,-212.623612,0.00043037,15]
[400344638,1767401443743,-212.623612,0.00043037,15]
[400344639,1767401443753,-212.623612,0.00043037,15]
[400344640,1767401443763,-212.623612,0.00043037,15]
[400344641,1767401443773,-212.623612,0.00043037,15]
[400344642,1767401443783,-212.623612,0.00043037,15]
[400344643,1767401443793,-212.623612,0.00043037,15]
[400344644,1767401443803,-212.623612,0.00043037,15]
[400344645,1767401443813,-212.623612,0.00043037,15]
[400344646,1767401443824,-212.623612,0.00043037,15]
[400344647,1767401443835,-212.623612,0.00043037,15]
[400344648,1767401443844,-212.623612,0.00043037,15]
[400344649,1767401443854,-212.623618,0.00043037,15]
[400344650,1767401443864,-152.673267,0.00043037,120]
[400344651,1767401443874,-151.0,0.00043037,120]
[400344652,1767401443884,-151.0,0.00043037,120]
[400344653,1767401443894,-151.0,0.00043037,120]
[400344654,1767401443904,-193.720753,0.00043037,120]
[400344655,1767401443916,-151.0,0.00043037,120]
[400344656,1767401443926,-151.0,0.00043037,120]
[400344657,1767401443938,-151.0,0.00043037,120]
[400344658,1767401443947,-151.0,0.00043037,120]
[400344659,1767401443957,-151.0,0.00043037,120]
[400344660,1767401443967,-151.0,0.00043037,120]
[400344661,1767401443977,-151.0,0.00043037,120]
[400344662,1767401443986,-151.0,0.00043037,120]
[400344663,1767401443996,-151.0,0.00043037,120]
[400344664,1767401444006,-151.0,0.00043037,120]
[400344665,1767401444016,-151.0,0.00043037,120]
[400344666,1767401444027,-151.0,0.00043037,120]
[400344667,1767401444037,-151.0,0.00043037,120]
[400344668,1767401444047,-151.0,0.00043037,120]
[400344669,1767401444057,-151.0,0.00043037,120]
[400344670,1767401444067,-151.0,0.00043037,120]
[400344671,1767401444077,-151.0,0.00043037,120]
[400344672,1767401444087,-151.0,0.00043037,120]
[400344673,1767401444097,-151.0,0.00043037,120]
[400344674,1767401444106,-151.0,0.00043037,120]
[400344675,1767401444116,-151.0,0.00043037,120]
[400344676,1767401444126,-265.905597,0.00043037,120]
[400344677,1767401444136,-151.0,0.00043037,120]
[400344678,1767401444147,-151.0,0.00043037,120]
[400344679,1767401444157,-190.450296,0.00043037,120]
[400344680,1767401444166,-151.0,0.00043037,120]
[400344681,1767401444176,-151.0,0.00043037,120]
[400344682,1767401444186,-210.112444,0.00043037,120]
[400344683,1767401444195,-151.0,0.00043037,120]
[400344684,1767401444206,-199.613655,0.00043037,120]
[400344685,1767401444216,-151.0,0.00043037,120]
[400344686,1767401444225,-151.0,0.00043037,120]
[400344687,1767401444235,-151.0,0.00043037,120]
[400344688,1767401444245,-169.906125,0.00043037,120]
[400344689,1767401444255,-215.481082,0.00043037,120]
[400344690,1767401444265,-75288.11462382,0.00043037,7]
[400344691,1767401444321,-999.0,0.00040281,2]
[400344701,1767401444498,-1707.813,0.00040281,2]
[400344703,1767401444508,-1252.13764316,0.00043037,7]
[400344704,1767401445289,-171.08,0.00042219,30]
[400344705,1767401445299,-367.9045404,0.00042937,120]
[400344706,1767401445312,-445.09966941,0.00042937,120]
[400344707,1767401445323,-67873.27990713,0.00043037,7]
[400344708,1767401445447,-5772.21204276,0.00043037,7]
[400344709,1767401445463,-5773.43510617,0.00043037,7]
[400344710,1767401445475,-5775.02289697,0.00043037,7]
[400344711,1767401445489,-5775.40240942,0.00043037,7]
[400344712,1767401445501,-6288.93350258,0.00043037,7]
[400344713,1767401445513,-57562.50109613,0.00043037,7]
[400344714,1767401445552,-1387.25410951,0.00043037,7]
[400344715,1767401445567,-13194.37768865,0.00043037,7]
[400344716,1767401461603,500.0,0.00043037,120]
[400344717,1767401762359,500.0,0.00043037,120]
[400344718,1767401784351,500.0,0.00031912,120]
[400344719,1767401784625,388.05577611,0.00031912,120]
[400344720,1767401886644,600.0,0.00031745,120]
[400344721,1767401900520,249.999999,0.00043037,120]
[400344722,1767401970081,250.0,0.00043037,120]
[400344723,1767401998181,250.0,0.00043038,120]
[400344724,1767402044419,250.0,0.00043038,120]
[400344725,1767402047050,500.0,0.00031921,120]
[400344726,1767402047292,500.0,0.00031921,120]
[400344727,1767402047527,500.0,0.00031921,120]
[400344728,1767402047758,500.0,0.00031921,120]
[400344729,1767402050688,500.0,0.00031921,120]
[400344730,1767402050916,500.0,0.00031921,120]
[400344731,1767402051153,500.0,0.00031921,120]
[400344732,1767402051384,500.0,0.00031921,120]
[400344733,1767402060937,500.0,0.00031921,120]
[400344734,1767402061196,500.0,0.00031921,120]
[400344735,1767402061442,500.0,0.00031921,120]
[400344736,1767402061675,500.0,0.00031921,120]
[400344737,1767402063098,450.1,0.00043038,30]
[400344738,1767402069872,250.0,0.00043038,120]
[400344739,1767402097906,250.0,0.00043038,120]
[400344740,1767402097939,500.0,0.00031921,120]
[400344741,1767402098194,500.0,0.00031921,120]
[400344742,1767402098456,500.0,0.00031921,120]
[400344743,1767402098945,500.0,0.00031921,120]
[400344744,1767402124726,250.0,0.00043038,120]
[400344746,1767402155535,250.0,0.00043039,120]
[400344747,1767402188151,151.0,0.00043039,50]
[400344748,1767402188443,151.0,0.00043039,50]
[400344749,1767402197292,250.0,0.00043039,120]
[400344750,1767402206226,457.47310816,0.00043039,120]
[400344751,1767402212118,151.0,0.00043039,50]
[400344752,1767402215045,500.0,0.00031921,120]
[400344753,1767402215270,500.0,0.00031921,120]
[400344754,1767402215505,504.56873782,0.00031921,120]
[400344755,1767402216473,151.0,0.00043039,50]
[400344756,1767402220522,151.0,0.00043039,50]
[400344757,1767402220811,151.0,0.00043039,50]
[400344758,1767402221089,151.0,0.00043039,50]
[400344759,1767402221385,151.0,0.00043039,50]
[400344760,1767402221668,151.0,0.00043039,50]
[400344761,1767402221962,239.622603,0.00043039,50]
[400344762,1767402230121,151.0,0.00043039,50]
[400344763,1767402230965,250.0,0.00043039,120]
[400344764,1767402233113,1000.0,0.00043039,120]
[400344765,1767402233366,935.93047322,0.00043039,120]
[400344766,1767402244691,600.0,0.00028278,120]
[400344767,1767402256747,250.0,0.00043039,120]
[400344768,1767402258026,151.0,0.00043039,50]
[400344769,1767402258343,243.336503,0.00043039,50]
[400344770,1767402262485,151.0,0.00043039,50]
[400344771,1767402262739,151.0,0.00043039,50]
[400344772,1767402273497,151.0,0.00043039,50]
[400344773,1767402273778,151.0,0.00043039,50]
[400344774,1767402289606,151.0,0.00043039,50]
[400344775,1767402289902,151.0,0.00043039,50]
[400344776,1767402326718,151.0,0.00043039,50]
[400344777,1767402326838,199.613655,0.00043039,50]
[400344778,1767402328264,151.0,0.00043039,50]
[400344779,1767402328594,151.0,0.00043039,50]
[400344780,1767402328651,151.0,0.00043039,50]
[400344781,1767402328919,151.0,0.00043039,50]
[400344782,1767402328957,151.0,0.00043039,50]
[400344783,1767402329261,151.0,0.00043039,50]
[400344784,1767402329306,151.0,0.00043039,50]
[400344785,1767402329610,151.0,0.00043039,50]
[400344786,1767402329939,151.0,0.00043039,50]
[400344787,1767402330251,151.0,0.00043039,50]
[400344788,1767402330552,151.0,0.00043039,50]
[400344789,1767402330846,151.0,0.00043039,50]
[400344790,1767402331141,259.726923,0.00043039,50]
[400344791,1767402332534,151.0,0.00043039,50]
[400344792,1767402332823,151.0,0.00043039,50]
[400344793,1767402333108,151.0,0.00043039,50]
[400344794,1767402398474,151.0,0.00043039,50]
[400344795,1767402402080,151.0,0.00043039,50]
[400344796,1767402402366,151.0,0.00043039,50]
[400344797,1767402402659,151.0,0.00043039,50]
[400344798,1767402402964,151.0,0.00043039,50]
[400344799,1767402403251,151.0,0.00043039,50]
[400344800,1767402403548,151.0,0.00043039,50]
[400344801,1767402403829,151.0,0.00043039,50]
[400344802,1767402404139,151.0,0.00043039,50]
[400344803,1767402404435,151.0,0.00043039,50]
[400344804,1767402404753,186.792888,0.00043039,50]
[400344805,1767402443087,151.0,0.00043039,50]
[400344806,1767402449288,151.0,0.00043038,30]
[400344807,1767402458652,151.0,0.00043038,50]
[400344808,1767402458959,151.0,0.00043038,50]
[400344809,1767402459236,151.0,0.00043038,50]
[400344811,1767402459519,151.0,0.00043038,50]
[400344812,1767402459825,151.0,0.00043038,50]
[400344813,1767402460116,151.0,0.00043038,50]
[400344814,1767402460425,151.0,0.00043038,50]
[400344815,1767402461062,151.0,0.00043038,50]
[400344816,1767402461516,151.0,0.00043038,50]
[400344817,1767402461812,151.0,0.00043038,50]
[400344818,1767402462102,151.0,0.00043038,50]
[400344819,1767402462399,151.0,0.00043038,50]
[400344820,1767402463037,151.0,0.00043038,50]
[400344821,1767402463095,151.0,0.00043038,50]
[400344822,1767402463258,151.0,0.00043038,50]
[400344823,1767402463555,157.056876,0.00043038,50]
[400344825,1767402487411,151.0,0.00043038,50]
[400344826,1767402487973,151.0,0.00043038,50]
[400344827,1767402508782,200.309783,0.00043038,30]
[400344828,1767402514491,151.0,0.00043038,50]
[400344829,1767402514827,151.0,0.00043038,50]
[400344830,1767402515185,151.0,0.00043038,50]
[400344831,1767402515491,151.0,0.00043038,50]
[400344832,1767402515771,151.0,0.00043038,50]
[400344833,1767402516058,151.0,0.00043038,50]
[400344834,1767402546754,151.0,0.00043038,50]
[400344835,1767402547039,152.673267,0.00043038,50]
[400344836,1767402562208,174.295475,0.00043038,50]
[400344837,1767402563207,151.0,0.00043038,50]
[400344838,1767402563503,151.0,0.00043038,50]
[400344839,1767402563890,151.0,0.00043038,50]
[400344840,1767402564172,151.0,0.00043038,50]
[400344841,1767402564460,151.0,0.00043038,50]
[400344842,1767402564781,151.0,0.00043038,50]
[400344843,1767402565178,151.0,0.00043038,50]
[400344844,1767402565372,151.0,0.00043038,50]
[400344845,1767402565679,226.573769,0.00043038,50]
[400344846,1767402572424,5400.0,0.00043038,50]
[400344847,1767402572747,5400.0,0.00043038,50]
[400344848,1767402573030,5400.0,0.00043038,50]
[400344849,1767402573313,5400.0,0.00043038,50]
[400344850,1767402573599,5400.0,0.00043038,50]
[400344851,1767402573889,5400.0,0.00043038,50]
[400344852,1767402574159,5400.0,0.00043038,50]
[400344853,1767402574436,5400.0,0.00043038,50]
[400344854,1767402574717,5400.0,0.00043038,50]
[400344855,1767402575004,5400.0,0.00043038,50]
[400344856,1767402575377,5400.0,0.00043038,50]
[400344857,1767402575547,5400.0,0.00043038,50]
[400344858,1767402575829,5400.0,0.00043038,50]
[400344859,1767402575943,151.0,0.00043038,50]
[400344860,1767402576113,5400.0,0.00043038,50]
[400344861,1767402576259,151.0,0.00043038,50]
[400344862,1767402576388,5400.0,0.00043038,50]
[400344863,1767402576555,151.0,0.00043038,50]
[400344864,1767402576671,5400.0,0.00043038,50]
[400344865,1767402576837,224.914583,0.00043038,50]
[400344866,1767402576990,5400.0,0.00043038,50]
[400344867,1767402577302,5400.0,0.00043038,50]
[400344868,1767402577582,5400.0,0.00043038,50]
[400344869,1767402578048,5400.0,0.00043038,50]
[400344870,1767402579343,151.0,0.00043038,50]
[400344871,1767402579772,151.0,0.00043038,50]
[400344872,1767402580087,151.0,0.00043038,50]
[400344873,1767402580405,193.720753,0.00043038,50]
[400344874,1767402590594,500.0,0.00043038,120]
[400344875,1767402590849,500.0,0.00043038,120]
[400344876,1767402609992,151.0,0.00043038,50]
[400344877,1767402610285,151.0,0.00043038,50]
[400344878,1767402610583,151.0,0.00043038,50]
[400344879,1767402610887,151.0,0.00043038,50]
[400344880,1767402611177,151.0,0.00043038,50]
[400344881,1767402611496,151.0,0.00043038,50]
[400344882,1767402611795,265.905597,0.00043038,50]
[400344883,1767402612711,151.0,0.00043038,50]
[400344884,1767402613004,151.0,0.00043038,50]
[400344885,1767402613292,151.0,0.00043038,50]
[400344886,1767402613588,190.450296,0.00043038,50]
[400344887,1767402616503,151.0,0.00043038,50]
[400344888,1767402616799,151.0,0.00043038,50]
[400344889,1767402617086,151.0,0.00043038,50]
[400344890,1767402617370,210.112444,0.00043038,50]
[400344891,1767402620210,151.0,0.00043038,50]
[400344892,1767402620654,151.0,0.00043038,50]
[400344893,1767402620862,151.0,0.00043038,50]
[400344894,1767402623275,151.0,0.00043038,50]
[400344895,1767402623591,151.0,0.00043038,50]
[400344896,1767402623879,151.0,0.00043038,50]
[400344897,1767402623949,151.0,0.00043038,50]
[400344898,1767402624240,151.0,0.00043038,50]
[400344899,1767402631342,151.0,0.00043038,50]
[400344900,1767402631386,151.0,0.00043038,50]
[400344911,1767402631470,-574.9815518,0.00020566,2]
[400344915,1767402631482,-596.78925316,0.00020566,2]
[400344916,1767402631544,169.906125,0.00043038,50]
[400344917,1767402631557,-394.27263261,0.00020566,2]
[400344918,1767402631566,-250.0,0.00022623,2]
[400344919,1767402631576,-250.0,0.00023105,2]
[400344920,1767402631585,-245.15698637,0.00024821,2]
[400344921,1767402631596,-151.0,0.00025821,2]
[400344922,1767402631607,-151.0,0.00025821,2]